fUSD/lending_fUSD_20260106
["ID","MTS","AMOUNT","RATE_DAILY","PERIOD"]
[400506070,1767678649116,-173.08990061,0.0002544,4]
[400506071,1767678649126,-245.35927834,0.0002544,4]
[400506072,1767678649135,-250.74529518,0.0002544,4]
[400506073,1767678649144,-223.93839011,0.0002544,4]
[400506074,1767678649154,-432.3385837,0.0002544,4]
[400506075,1767678649164,-197.30189059,0.0002544,4]
[400506076,1767678649173,-159.2619942,0.0002544,4]
[400506077,1767678649183,-150.0,0.00025454,4]
[400506078,1767678649193,-173.08990061,0.00025467,4]
[400506079,1767678649203,-245.35927834,0.00025467,4]
[400506080,1767678649213,-250.74529518,0.00025467,4]
[400506081,1767678649223,-223.93839011,0.00025467,4]
[400506082,1767678649234,-432.3385837,0.00025467,4]
[400506083,1767678649243,-197.30189059,0.00025467,4]
[400506084,1767678649252,-159.2619942,0.00025467,4]
[400506085,1767678649262,-150.0,0.00025472,4]
[400506086,1767678649271,-1000.0,0.00025479,2]
[400506087,1767678649281,-150.0,0.00025486,4]
[400506088,1767678649291,-158.04,0.0002549,2]
[400506089,1767678649300,-173.08990061,0.00025493,4]
[400506090,1767678649310,-245.35927834,0.00025493,4]
[400506091,1767678649321,-250.74529518,0.00025493,4]
[400506092,1767678649331,-223.93839011,0.00025493,4]
[400506093,1767678649341,-432.3385837,0.00025493,4]
[400506094,1767678649351,-197.30189059,0.00025493,4]
[400506095,1767678649360,-159.2619942,0.00025493,4]
[400506096,1767678649370,-150.0,0.00025503,4]
[400506097,1767678649381,-300.0,0.00025515,2]
[400506098,1767678649391,-173.08990061,0.0002552,4]
[400506099,1767678649401,-245.35927834,0.0002552,4]
[400506100,1767678649410,-250.74529518,0.0002552,4]
[400506101,1767678649419,-150.0,0.0002552,4]
[400506102,1767678649430,-223.93839011,0.0002552,4]
[400506103,1767678649440,-150.0,0.0002552,4]
[400506104,1767678649450,-432.3385837,0.0002552,4]
[400506105,1767678649460,-197.30189059,0.0002552,4]
[400506106,1767678649470,-159.2619942,0.0002552,4]
[400506107,1767678649480,-150.0,0.00025544,4]
[400506108,1767678649489,-173.08990061,0.00025547,4]
[400506109,1767678649499,-245.35927834,0.00025547,4]
[400506110,1767678649509,-250.74529518,0.00025547,4]
[400506111,1767678649519,-223.93839011,0.00025547,4]
[400506112,1767678649528,-432.3385837,0.00025547,4]
[400506113,1767678649538,-197.30189059,0.00025547,4]
[400506114,1767678649548,-159.2619942,0.00025547,4]
[400506115,1767678649557,-150.0,0.00025553,4]
[400506116,1767678649568,-201.1559723,0.0002556,2]
[400506117,1767678649577,-166.66,0.0002557,30]
[400506118,1767678649587,-173.08990061,0.00025573,4]
[400506119,1767678649597,-245.35927834,0.00025573,4]
[400506120,1767678649608,-250.74529518,0.00025573,4]
[400506121,1767678649617,-223.93839011,0.00025573,4]
[400506122,1767678649628,-432.3385837,0.00025573,4]
[400506123,1767678649639,-197.30189059,0.00025573,4]
[400506124,1767678649651,-159.2619942,0.00025573,4]
[400506125,1767678649662,-150.0,0.00025588,4]
[400506126,1767678649674,-173.08990061,0.000256,4]
[400506127,1767678649685,-245.35927834,0.000256,4]
[400506128,1767678649698,-250.74529518,0.000256,4]
[400506129,1767678649707,-223.93839011,0.000256,4]
[400506130,1767678649717,-432.3385837,0.000256,4]
[400506131,1767678649727,-197.30189059,0.000256,4]
[400506132,1767678649737,-159.2619942,0.000256,4]
[400506133,1767678649749,-150.0,0.00025603,4]
[400506134,1767678649763,-5000.0,0.00025604,2]
[400506135,1767678649774,-5425.18816308,0.00025608,2]
[400506136,1767678649783,-300.0,0.00025614,2]
[400506137,1767678649793,-150.0,0.00025615,4]
[400506138,1767678649803,-173.08990061,0.00025627,4]
[400506139,1767678649813,-245.35927834,0.00025627,4]
[400506140,1767678649823,-250.74529518,0.00025627,4]
[400506141,1767678649832,-223.93839011,0.00025627,4]
[400506142,1767678649842,-432.3385837,0.00025627,4]
[400506143,1767678649852,-197.30189059,0.00025627,4]
[400506144,1767678649862,-159.2619942,0.00025627,4]
[400506145,1767678649872,-300.0,0.00025632,2]
[400506146,1767678649884,-150.0,0.00025646,4]
[400506147,1767678649895,-150.0,0.00025646,4]
[400506148,1767678649906,-150.0,0.00025653,4]
[400506149,1767678649916,-173.08990061,0.00025653,4]
[400506150,1767678649926,-245.35927834,0.00025653,4]
[400506151,1767678649937,-250.74529518,0.00025653,4]
[400506152,1767678649948,-223.93839011,0.00025653,4]
[400506153,1767678649959,-432.3385837,0.00025653,4]
[400506154,1767678649969,-197.30189059,0.00025653,4]
[400506155,1767678649980,-159.2619942,0.00025653,4]
[400506156,1767678649990,-173.08990061,0.0002568,4]
[400506157,1767678649999,-245.35927834,0.0002568,4]
[400506158,1767678650009,-250.74529518,0.0002568,4]
[400506159,1767678650019,-223.93839011,0.0002568,4]
[400506160,1767678650029,-432.3385837,0.0002568,4]
[400506161,1767678650039,-197.30189059,0.0002568,4]
[400506162,1767678650048,-159.2619942,0.0002568,4]
[400506163,1767678650058,-150.0,0.00025686,4]
[400506164,1767678650069,-150.0,0.00025689,4]
[400506165,1767678650079,-150.0,0.00025703,4]
[400506166,1767678650089,-173.08990061,0.00025707,4]
[400506167,1767678650099,-245.35927834,0.00025707,4]
[400506168,1767678650108,-250.74529518,0.00025707,4]
[400506169,1767678650118,-223.93839011,0.00025707,4]
[400506170,1767678650127,-432.3385837,0.00025707,4]
[400506171,1767678650137,-197.30189059,0.00025707,4]
[400506172,1767678650147,-159.2619942,0.00025707,4]
[400506173,1767678650157,-173.08990061,0.00025733,4]
[400506174,1767678650167,-245.35927834,0.00025733,4]
[400506175,1767678650177,-250.74529518,0.00025733,4]
[400506176,1767678650187,-223.93839011,0.00025733,4]
[400506177,1767678650197,-432.3385837,0.00025733,4]
[400506178,1767678650207,-197.30189059,0.00025733,4]
[400506179,1767678650217,-159.2619942,0.00025733,4]
[400506180,1767678650226,-150.0,0.0002574,4]
[400506181,1767678650236,-150.0,0.00025746,5]
[400506182,1767678650246,-150.0,0.00025752,4]
[400506183,1767678650255,-1000.0,0.00025753,2]
[400506184,1767678650265,-150.0,0.00025758,4]
[400506185,1767678650277,-173.08990061,0.0002576,4]
[400506186,1767678650287,-245.35927834,0.0002576,4]
[400506187,1767678650298,-250.74529518,0.0002576,4]
[400506188,1767678650308,-223.93839011,0.0002576,4]
[400506189,1767678650319,-432.3385837,0.0002576,4]
[400506190,1767678650329,-197.30189059,0.0002576,4]
[400506191,1767678650339,-159.2619942,0.0002576,4]
[400506192,1767678650350,-173.08990061,0.00025787,4]
[400506193,1767678650360,-245.35927834,0.00025787,4]
[400506194,1767678650370,-250.74529518,0.00025787,4]
[400506195,1767678650380,-223.93839011,0.00025787,4]
[400506196,1767678650391,-432.3385837,0.00025787,4]
[400506197,1767678650401,-197.30189059,0.00025787,4]
[400506198,1767678650416,-159.2619942,0.00025787,4]
[400506199,1767678650427,-150.0,0.00025791,4]
[400506200,1767678650437,-89738.95,0.000258,7]
[400506201,1767678650457,-150.0,0.00025802,4]
[400506202,1767678650467,-166.66,0.00025805,2]
[400506203,1767678650479,-173.08990061,0.00025813,4]
[400506204,1767678650489,-245.35927834,0.00025813,4]
[400506205,1767678650500,-250.74529518,0.00025813,4]
[400506206,1767678650511,-223.93839011,0.00025813,4]
[400506207,1767678650520,-432.3385837,0.00025813,4]
[400506208,1767678650530,-197.30189059,0.00025813,4]
[400506209,1767678650540,-159.2619942,0.00025813,4]
[400506210,1767678650550,-150.0,0.00025829,4]
[400506211,1767678650563,-173.08990061,0.0002584,4]
[400506212,1767678650572,-245.35927834,0.0002584,4]
[400506213,1767678650583,-250.74529518,0.0002584,4]
[400506214,1767678650595,-223.93839011,0.0002584,4]
[400506215,1767678650606,-432.3385837,0.0002584,4]
[400506216,1767678650616,-197.30189059,0.0002584,4]
[400506217,1767678650629,-159.2619942,0.0002584,4]
[400506218,1767678650642,-700.0,0.00025852,7]
[400506219,1767678650652,-150.0,0.00025852,4]
[400506220,1767678650662,-173.08990061,0.00025867,4]
[400506221,1767678650674,-245.35927834,0.00025867,4]
[400506222,1767678650684,-250.74529518,0.00025867,4]
[400506223,1767678650694,-223.93839011,0.00025867,4]
[400506224,1767678650707,-432.3385837,0.00025867,4]
[400506225,1767678650718,-197.30189059,0.00025867,4]
[400506226,1767678650728,-159.2619942,0.00025867,4]
[400506227,1767678650738,-150.0,0.00025872,4]
[400506228,1767678650748,-171.0,0.0002589,7]
[400506229,1767678650757,-156.0,0.0002589,7]
[400506230,1767678650767,-150.0,0.00025892,4]
[400506231,1767678650777,-173.08990061,0.00025893,4]
[400506232,1767678650787,-245.35927834,0.00025893,4]
[400506233,1767678650796,-250.74529518,0.00025893,4]
[400506234,1767678650806,-223.93839011,0.00025893,4]
[400506235,1767678650817,-432.3385837,0.00025893,4]
[400506236,1767678650827,-197.30189059,0.00025893,4]
[400506237,1767678650836,-159.2619942,0.00025893,4]
[400506238,1767678650845,-150.0,0.00025901,4]
[400506239,1767678650855,-150.0,0.00025902,4]
[400506240,1767678650864,-300.0,0.00025906,2]
[400506241,1767678650874,-173.08990061,0.0002592,4]
[400506242,1767678650883,-245.35927834,0.0002592,4]
[400506243,1767678650893,-250.74529518,0.0002592,4]
[400506244,1767678650903,-223.93839011,0.0002592,4]
[400506245,1767678650912,-432.3385837,0.0002592,4]
[400506246,1767678650922,-197.30189059,0.0002592,4]
[400506247,1767678650931,-159.2619942,0.0002592,4]
[400506248,1767678650940,-173.08990061,0.00025947,4]
[400506249,1767678650950,-245.35927834,0.00025947,4]
[400506250,1767678650959,-250.74529518,0.00025947,4]
[400506251,1767678650968,-223.93839011,0.00025947,4]
[400506252,1767678650978,-432.3385837,0.00025947,4]
[400506253,1767678650987,-197.30189059,0.00025947,4]
[400506254,1767678650996,-159.2619942,0.00025947,4]
[400506255,1767678651007,-150.0,0.00025952,4]
[400506256,1767678651017,-150.0,0.0002596,4]
[400506257,1767678651027,-150.0,0.00025972,4]
[400506258,1767678651039,-173.08990061,0.00025973,4]
[400506259,1767678651049,-245.35927834,0.00025973,4]
[400506260,1767678651060,-250.74529518,0.00025973,4]
[400506261,1767678651070,-223.93839011,0.00025973,4]
[400506262,1767678651080,-432.3385837,0.00025973,4]
[400506263,1767678651091,-197.30189059,0.00025973,4]
[400506264,1767678651101,-159.2619942,0.00025973,4]
[400506265,1767678651110,-150.0,0.00025994,4]
[400506266,1767678651125,-173.08990061,0.00026,4]
[400506267,1767678651135,-245.35927834,0.00026,4]
[400506268,1767678651145,-250.74529518,0.00026,4]
[400506269,1767678651156,-223.93839011,0.00026,4]
[400506270,1767678651166,-432.3385837,0.00026,4]
[400506271,1767678651178,-197.30189059,0.00026,4]
[400506272,1767678651188,-159.2619942,0.00026,4]
[400506273,1767678651198,-150.0,0.00026002,4]
[400506274,1767678651208,-152.0,0.00026008,7]
[400506275,1767678651218,-150.0,0.00026023,4]
[400506276,1767678651229,-150.0,0.00026023,4]
[400506277,1767678651240,-173.08990061,0.00026027,4]
[400506278,1767678651252,-245.35927834,0.00026027,4]
[400506279,1767678651262,-250.74529518,0.00026027,4]
[400506280,1767678651272,-223.93839011,0.00026027,4]
[400506281,1767678651282,-432.3385837,0.00026027,4]
[400506282,1767678651292,-197.30189059,0.00026027,4]
[400506283,1767678651302,-159.2619942,0.00026027,4]
[400506284,1767678651313,-1000.0,0.00026027,2]
[400506285,1767678651323,-424.3706895,0.00026028,2]
[400506286,1767678651333,-6374.1407128,0.00026028,2]
[400506287,1767678651344,-153408.7837305,0.00026028,2]
[400506288,1767678651354,-222.382707,0.00026028,7]
[400506289,1767678651364,-378.020033,0.00026028,7]
[400506290,1767678651374,-378.020033,0.00026028,7]
[400506291,1767678651384,-378.020033,0.00026028,7]
[400506292,1767678651394,-441.117051,0.00026028,2]
[400506293,1767678651404,-378.020041,0.00026028,7]
[400506294,1767678651413,-441.117051,0.00026028,2]
[400506295,1767678651423,-441.117051,0.00026028,2]
[400506296,1767678651434,-441.117058,0.00026028,2]
[400506297,1767678651443,-151.0,0.00026028,7]
[400506298,1767678651453,-151.0,0.00026028,7]
[400506299,1767678651462,-151.0,0.00026028,7]
[400506300,1767678651472,-2336.943815,0.00026028,7]
[400506301,1767678651481,-2336.943815,0.00026028,7]
[400506302,1767678651491,-2336.943815,0.00026028,7]
[400506303,1767678651500,-204.173232,0.00026028,7]
[400506304,1767678651510,-204.173232,0.00026028,7]
[400506305,1767678651520,-2336.943812,0.00026028,7]
[400506306,1767678651530,-204.173232,0.00026028,7]
[400506307,1767678651539,-204.173241,0.00026028,7]
[400506308,1767678651549,-151.0,0.00026028,7]
[400506309,1767678651559,-150.0,0.00026043,4]
[400506310,1767678651569,-300.0,0.00026045,2]
[400506311,1767678651579,-300.0,0.00026046,2]
[400506312,1767678651589,-150.0,0.00026051,4]
[400506313,1767678651599,-173.08990061,0.00026053,4]
[400506314,1767678651609,-245.35927834,0.00026053,4]
[400506315,1767678651618,-250.74529518,0.00026053,4]
[400506316,1767678651634,-223.93839011,0.00026053,4]
[400506317,1767678651643,-432.3385837,0.00026053,4]
[400506318,1767678651653,-197.30189059,0.00026053,4]
[400506319,1767678651662,-159.2619942,0.00026053,4]
[400506320,1767678651672,-166.66,0.00026076,30]
[400506321,1767678651683,-173.08990061,0.0002608,4]
[400506322,1767678651693,-245.35927834,0.0002608,4]
[400506323,1767678651702,-250.74529518,0.0002608,4]
[400506324,1767678651712,-223.93839011,0.0002608,4]
[400506325,1767678651721,-432.3385837,0.0002608,4]
[400506326,1767678651731,-197.30189059,0.0002608,4]
[400506327,1767678651742,-159.2619942,0.0002608,4]
[400506328,1767678651752,-1000.0,0.0002609,2]
[400506329,1767678651763,-150.0,0.00026095,4]
[400506330,1767678651772,-300.0,0.00026098,2]
[400506331,1767678651783,-150.0,0.00026101,4]
[400506332,1767678651794,-173.08990061,0.00026107,4]
[400506333,1767678651804,-245.35927834,0.00026107,4]
[400506334,1767678651819,-250.74529518,0.00026107,4]
[400506335,1767678651830,-223.93839011,0.00026107,4]
[400506336,1767678651842,-432.3385837,0.00026107,4]
[400506337,1767678651852,-197.30189059,0.00026107,4]
[400506338,1767678651862,-159.2619942,0.00026107,4]
[400506339,1767678651873,-150.0,0.00026115,4]
[400506340,1767678651885,-173.08990061,0.00026133,4]
[400506341,1767678651896,-245.35927834,0.00026133,4]
[400506342,1767678652121,-250.74529518,0.00026133,4]
[400506343,1767678652139,-223.93839011,0.00026133,4]
[400506344,1767678652148,-432.3385837,0.00026133,4]
[400506345,1767678652158,-197.30189059,0.00026133,4]
[400506346,1767678652167,-159.2619942,0.00026133,4]
[400506347,1767678652176,-320.32263,0.0002614,2]
[400506348,1767678652186,-320.32264,0.0002614,2]
[400506349,1767678652195,-320.32264,0.0002614,2]
[400506350,1767678652205,-320.32264,0.0002614,2]
[400506351,1767678652216,-320.32263,0.0002614,2]
[400506352,1767678652227,-150.0,0.00026151,4]
[400506353,1767678652237,-173.08990061,0.0002616,4]
[400506354,1767678652247,-245.35927834,0.0002616,4]
[400506355,1767678652256,-250.74529518,0.0002616,4]
[400506356,1767678652265,-223.93839011,0.0002616,4]
[400506357,1767678652274,-432.3385837,0.0002616,4]
[400506358,1767678652284,-197.30189059,0.0002616,4]
[400506359,1767678652293,-159.2619942,0.0002616,4]
[400506360,1767678652302,-150.0,0.0002618,4]
[400506361,1767678652312,-150.0,0.00026186,4]
[400506362,1767678652322,-173.08990061,0.00026187,4]
[400506363,1767678652335,-245.35927834,0.00026187,4]
[400506364,1767678652344,-250.74529518,0.00026187,4]
[400506365,1767678652354,-223.93839011,0.00026187,4]
[400506366,1767678652363,-432.3385837,0.00026187,4]
[400506367,1767678652373,-197.30189059,0.00026187,4]
[400506368,1767678652383,-159.2619942,0.00026187,4]
[400506369,1767678652392,-200.0,0.00026189,2]
[400506370,1767678652401,-150.0,0.00026197,4]
[400506371,1767678652411,-150.0,0.00026201,4]
[400506372,1767678652421,-173.08990061,0.00026213,4]
[400506373,1767678652431,-245.35927834,0.00026213,4]
[400506374,1767678652440,-250.74529518,0.00026213,4]
[400506375,1767678652450,-223.93839011,0.00026213,4]
[400506376,1767678652459,-432.3385837,0.00026213,4]
[400506377,1767678652469,-197.30189059,0.00026213,4]
[400506378,1767678652478,-159.2619942,0.00026213,4]
[400506379,1767678652487,-889.21569142,0.00026225,2]
[400506380,1767678652496,-173.08990061,0.0002624,4]
[400506381,1767678652506,-245.35927834,0.0002624,4]
[400506382,1767678652515,-250.74529518,0.0002624,4]
[400506383,1767678652524,-223.93839011,0.0002624,4]
[400506384,1767678652534,-432.3385837,0.0002624,4]
[400506385,1767678652546,-197.30189059,0.0002624,4]
[400506386,1767678652555,-159.2619942,0.0002624,4]
[400506387,1767678652565,-150.0,0.00026251,4]
[400506388,1767678652574,-150.0,0.00026257,4]
[400506389,1767678652583,-173.08990061,0.00026267,4]
[400506390,1767678652593,-245.35927834,0.00026267,4]
[400506391,1767678652603,-250.74529518,0.00026267,4]
[400506392,1767678652612,-223.93839011,0.00026267,4]
[400506393,1767678652622,-432.3385837,0.00026267,4]
[400506394,1767678652635,-197.30189059,0.00026267,4]
[400506395,1767678652644,-159.2619942,0.00026267,4]
[400506396,1767678652653,-173.08990061,0.00026293,4]
[400506397,1767678652663,-245.35927834,0.00026293,4]
[400506398,1767678652674,-250.74529518,0.00026293,4]
[400506399,1767678652683,-223.93839011,0.00026293,4]
[400506400,1767678652692,-432.3385837,0.00026293,4]
[400506401,1767678652702,-197.30189059,0.00026293,4]
[400506402,1767678652712,-159.2619942,0.00026293,4]
[400506403,1767678652722,-150.0,0.00026298,4]
[400506404,1767678652732,-150.0,0.000263,4]
[400506405,1767678652742,-173.08990061,0.0002632,4]
[400506406,1767678652752,-245.35927834,0.0002632,4]
[400506407,1767678652761,-250.74529518,0.0002632,4]
[400506408,1767678652770,-223.93839011,0.0002632,4]
[400506409,1767678652780,-432.3385837,0.0002632,4]
[400506410,1767678652789,-197.30189059,0.0002632,4]
[400506411,1767678652799,-159.2619942,0.0002632,4]
[400506412,1767678652808,-150.0,0.00026329,4]
[400506413,1767678652818,-173.08990061,0.00026347,4]
[400506414,1767678652828,-245.35927834,0.00026347,4]
[400506415,1767678652839,-250.74529518,0.00026347,4]
[400506416,1767678652848,-223.93839011,0.00026347,4]
[400506417,1767678652858,-432.3385837,0.00026347,4]
[400506418,1767678652871,-197.30189059,0.00026347,4]
[400506419,1767678652881,-159.2619942,0.00026347,4]
[400506420,1767678652893,-150.0,0.0002635,4]
[400506421,1767678652904,-400.0,0.0002637,2]
[400506422,1767678652914,-400.0,0.0002637,2]
[400506423,1767678652923,-173.08990061,0.00026373,4]
[400506424,1767678652942,-245.35927834,0.00026373,4]
[400506425,1767678652953,-250.74529518,0.00026373,4]
[400506426,1767678652963,-223.93839011,0.00026373,4]
[400506427,1767678652974,-432.3385837,0.00026373,4]
[400506428,1767678652984,-197.30189059,0.00026373,4]
[400506429,1767678652995,-159.2619942,0.00026373,4]
[400506430,1767678653005,-11818.72639524,0.000264,2]
[400506431,1767678653016,-150.0,0.000264,2]
[400506432,1767678653026,-399.0,0.000264,2]
[400506433,1767678653036,-173.08990061,0.000264,4]
[400506434,1767678653046,-245.35927834,0.000264,4]
[400506435,1767678653056,-250.74529518,0.000264,4]
[400506436,1767678653066,-268.23741255,0.000264,4]
[400506437,1767678653076,-221.79993535,0.000264,4]
[400506438,1767678653086,-223.93839011,0.000264,4]
[400506439,1767678653096,-161.33447614,0.000264,4]
[400506440,1767678653106,-157.58139196,0.000264,4]
[400506441,1767678653115,-153.26761392,0.000264,4]
[400506442,1767678653125,-155.13682434,0.000264,4]
[400506443,1767678653134,-432.3385837,0.000264,4]
[400506444,1767678653144,-197.30189059,0.000264,4]
[400506445,1767678653154,-151.95209032,0.000264,4]
[400506446,1767678653164,-259.81989931,0.000264,4]
[400506447,1767678653175,-193.8250366,0.000264,4]
[400506448,1767678653186,-241.77017008,0.000264,4]
[400506449,1767678653195,-159.2619942,0.000264,4]
[400506450,1767678653205,-320.32263,0.000264,2]
[400506451,1767678653214,-320.32264,0.000264,2]
[400506452,1767678653225,-320.32264,0.000264,2]
[400506453,1767678653235,-320.32263,0.000264,2]
[400506454,1767678653244,-320.32263,0.000264,2]
[400506455,1767678653254,-448.66813741,0.000264,2]
[400506456,1767678653264,-448.66813741,0.000264,2]
[400506457,1767678653273,-951.93936563,0.000264,2]
[400506458,1767678653283,-951.93936563,0.000264,2]
[400506459,1767678653293,-166.66,0.00026582,30]
[400506460,1767678653303,-7713.73,0.000266,7]
[400506461,1767678653312,-271.43544384,0.00026651,5]
[400506462,1767678653322,-166.66,0.00026657,2]
[400506463,1767678653336,-470.65,0.00026676,2]
[400506464,1767678653345,-2000.0,0.000267,2]
[400506465,1767678653356,-305.80426299,0.00026717,2]
[400506466,1767678653366,-500.0,0.00026948,7]
[400506467,1767678653376,-500.0,0.00026948,7]
[400506468,1767678653385,-700.0,0.00026948,7]
[400506469,1767678653395,-250.0,0.00027,2]
[400506470,1767678653405,-1030.31812563,0.00027,2]
[400506471,1767678653415,-530.0,0.00027,2]
[400506472,1767678653426,-2000.0,0.00027,2]
[400506473,1767678653435,-2437.382594,0.0002701,2]
[400506474,1767678653445,-152.0,0.00027019,8]
[400506475,1767678653454,-89738.95,0.000271,7]
[400506476,1767678653464,-3672.95,0.00027123,2]
[400506477,1767678653475,-6453.0,0.00027129,2]
[400506478,1767678653485,-280.4953858,0.00027211,2]
[400506479,1767678653495,-150.0,0.00027369,2]
[400506480,1767678653504,-8089.88399517,0.0002739,2]
[400506481,1767678653514,-4095.07523839,0.0002739,2]
[400506482,1767678653523,-443.0,0.00027397,7]
[400506483,1767678653533,-336.6,0.00027397,4]
[400506484,1767678653543,-315.4,0.00027397,5]
[400506485,1767678653552,-483.8,0.00027397,7]
[400506486,1767678653562,-379.8,0.00027397,6]
[400506487,1767678653572,-400.8,0.00027397,7]
[400506488,1767678653582,-463.0,0.00027397,5]
[400506489,1767678653592,-496.2,0.00027397,4]
[400506490,1767678653602,-421.2,0.00027397,4]
[400506491,1767678653612,-326.0,0.00027397,3]
[400506492,1767678653622,-406.2,0.00027397,7]
[400506493,1767678653634,-316.2,0.00027397,3]
[400506494,1767678653644,-397.8,0.00027397,5]
[400506495,1767678653654,-380.8,0.00027397,2]
[400506496,1767678653664,-391.4,0.00027397,2]
[400506497,1767678653675,-480.2,0.00027397,5]
[400506498,1767678653685,-374.6,0.00027397,2]
[400506499,1767678653694,-328.4,0.00027397,2]
[400506500,1767678653706,-409.2,0.00027397,4]
[400506501,1767678653716,-313.2,0.00027397,2]
[400506502,1767678653729,-384.0,0.00027397,6]
[400506503,1767678653739,-344.8,0.00027397,3]
[400506504,1767678653748,-340.4,0.00027397,4]
[400506505,1767678653758,-473.0,0.00027397,2]
[400506506,1767678653768,-374.8,0.00027397,2]
[400506507,1767678653778,-493.2,0.00027397,7]
[400506508,1767678653788,-441.0,0.00027397,2]
[400506509,1767678653798,-381.2,0.00027397,4]
[400506510,1767678653807,-398.72,0.00027397,2]
[400506511,1767678653817,-415.2,0.00027397,5]
[400506512,1767678653827,-412.46345439,0.00027397,6]
[400506513,1767678653836,-399.8,0.00027397,2]
[400506514,1767678653846,-332.4,0.00027397,2]
[400506515,1767678653856,-395.2,0.00027397,2]
[400506516,1767678653865,-476.4,0.00027397,4]
[400506517,1767678653875,-414.8,0.00027397,2]
[400506518,1767678653884,-370.2,0.00027397,6]
[400506519,1767678653894,-227.1911732,0.00027397,33]
[400506520,1767678653903,-452.8,0.00027397,3]
[400506521,1767678653913,-486.6,0.00027397,4]
[400506522,1767678653923,-426.4,0.00027397,3]
[400506523,1767678653933,-423.2,0.00027397,6]
[400506524,1767678653943,-350.8,0.00027397,5]
[400506525,1767678653952,-339.4,0.00027397,3]
[400506526,1767678653962,-465.8,0.00027397,2]
[400506527,1767678653971,-483.2,0.00027397,5]
[400506528,1767678653981,-361.8,0.00027397,3]
[400506529,1767678653991,-461.6,0.00027397,4]
[400506530,1767678654001,-151.0,0.00027397,2]
[400506531,1767678654011,-294.11741836,0.00027397,7]
[400506532,1767678654020,-1442.18,0.00027397,2]
[400506533,1767678654029,-500.0,0.00027397,20]
[400506534,1767678654039,-300.0,0.00027397,2]
[400506535,1767678654049,-517.38,0.00027397,2]
[400506536,1767678654058,-531.29,0.00027397,30]
[400506537,1767678654068,-1559.6,0.00027397,2]
[400506538,1767678654078,-151.0,0.00027397,7]
[400506539,1767678654088,-151.0,0.00027397,7]
[400506540,1767678654097,-216.58164,0.00027397,7]
[400506541,1767678654110,-39761.03,0.00027397,2]
[400506542,1767678654120,-151.0,0.00027397,7]
[400506543,1767678654130,-151.839234,0.00027397,7]
[400506544,1767678654140,-183.91,0.00027397,10]
[400506545,1767678654150,-151.0,0.00027397,7]
[400506546,1767678654160,-151.0,0.00027397,7]
[400506547,1767678654170,-151.0,0.00027397,7]
[400506548,1767678654180,-151.0,0.00027397,7]
[400506549,1767678654190,-151.0,0.00027397,7]
[400506550,1767678654200,-151.0,0.00027397,7]
[400506551,1767678654209,-151.0,0.00027397,7]
[400506552,1767678654218,-151.0,0.00027397,7]
[400506553,1767678654228,-151.0,0.00027397,7]
[400506554,1767678654238,-151.0,0.00027397,7]
[400506555,1767678654248,-517.50678781,0.00027397,5]
[400506556,1767678654258,-150.0,0.000274,2]
[400506557,1767678654267,-200.38632344,0.000275,2]
[400506558,1767678654277,-547.40986351,0.000275,2]
[400506559,1767678654287,-166.66,0.00027508,2]
[400506560,1767678654297,-3377.03,0.00027723,2]
[400506561,1767678654307,-71054.94317974,0.00028,2]
[400506562,1767678654318,-50667.59598375,0.00028,2]
[400506563,1767678654327,-7713.73,0.00028,7]
[400506564,1767678654337,-505.67075013,0.00028,60]
[400506565,1767678654348,-500.0,0.00028,2]
[400506566,1767678654358,-152.0,0.00028029,9]
[400506567,1767678654368,-700.0,0.00028044,14]
[400506568,1767678654387,-150.0,0.00028185,2]
[400506569,1767678654401,-150.0,0.00028185,2]